{"text_format":"1","workbook":"xlsx","n_sheets":1,"sheets":["sheet1"],"not_rendered":{"charts":0,"images":0,"macros":1,"external_links":0,"defined_names":0,"comments":0,"pivot_tables":0},"unopened":[],"bounds":{"document_bytes":16777216,"sheet_cells":100000,"rows_first":2000,"rows_last":500,"rows_between":2000,"halvings":0,"cell_chars":16384,"cell_head_chars":4096},"cells_cut":0,"cells_raw":0,"read":"whole","date_system":"1900"}

{"sheet":"sheet1","index":0,"n_rows":32,"n_cols":9,"rows_kept":32,"cut":false,"hidden":false,"merged":[]}
["번호","사진","FolderName","FileName","이름","장래 희망","좌우명"]
["1",null,null,null,null,null,null,{"$f":"LEFT(D2,FIND(\"(\",D2)-1)","v":{"$error":"#VALUE!"}},{"$f":"IF(E2=H2,0,1)","v":{"$error":"#VALUE!"}}]
["2",null,null,null,null,null,null,{"$f":"LEFT(D3,FIND(\"(\",D3)-1)","v":{"$error":"#VALUE!"}},{"$f":"IF(E3=H3,0,1)","v":{"$error":"#VALUE!"}}]
["3",null,null,null,null,null,null,{"$error":"#VALUE!"},{"$error":"#VALUE!"}]
["4",null,null,null,null,null,null,{"$error":"#VALUE!"},{"$error":"#VALUE!"}]
["5",null,null,null,null,null,null,{"$error":"#VALUE!"},{"$error":"#VALUE!"}]
["6",null,null,null,null,null,null,{"$error":"#VALUE!"},{"$error":"#VALUE!"}]
["7",null,null,null,null,null,null,{"$error":"#VALUE!"},{"$error":"#VALUE!"}]
["8",null,null,null,null,null,null,{"$error":"#VALUE!"},{"$error":"#VALUE!"}]
["9",null,null,null,null,null,null,{"$error":"#VALUE!"},{"$error":"#VALUE!"}]
["10",null,null,null,null,null,null,{"$error":"#VALUE!"},{"$error":"#VALUE!"}]
["11",null,null,null,null,null,null,{"$error":"#VALUE!"},{"$error":"#VALUE!"}]
["12",null,null,null,null,null,null,{"$error":"#VALUE!"},{"$error":"#VALUE!"}]
["13",null,null,null,null,null,null,{"$error":"#VALUE!"},{"$error":"#VALUE!"}]
["14",null,null,null,null,null,null,{"$error":"#VALUE!"},{"$error":"#VALUE!"}]
["15",null,null,null,null,null,null,{"$error":"#VALUE!"},{"$error":"#VALUE!"}]
["16",null,null,null,null,null,null,{"$error":"#VALUE!"},{"$error":"#VALUE!"}]
["17",null,null,null,null,null,null,{"$error":"#VALUE!"},{"$error":"#VALUE!"}]
["18",null,null,null,null,null,null,{"$error":"#VALUE!"},{"$error":"#VALUE!"}]
["19",null,null,null,null,null,null,{"$error":"#VALUE!"},{"$error":"#VALUE!"}]
["20",null,null,null,null,null,null,{"$error":"#VALUE!"},{"$error":"#VALUE!"}]
["21",null,null,null,null,null,null,{"$error":"#VALUE!"},{"$error":"#VALUE!"}]
["22",null,null,null,null,null,null,{"$error":"#VALUE!"},{"$error":"#VALUE!"}]
["23",null,null,null,null,null,null,{"$error":"#VALUE!"},{"$error":"#VALUE!"}]
["24",null,null,null,null,null,null,{"$error":"#VALUE!"},{"$error":"#VALUE!"}]
["25",null,null,null,null,null,null,{"$error":"#VALUE!"},{"$error":"#VALUE!"}]
["26",null,null,null,null,null,null,{"$error":"#VALUE!"},{"$error":"#VALUE!"}]
["27",null,null,null,null,null,null,{"$error":"#VALUE!"},{"$error":"#VALUE!"}]
["28",null,null,null,null,null,null,{"$error":"#VALUE!"},{"$error":"#VALUE!"}]
["29",null,null,null,null,null,null,{"$error":"#VALUE!"},{"$error":"#VALUE!"}]
["30",null,null,null,null,null,null,{"$error":"#VALUE!"},{"$error":"#VALUE!"}]
[31,null,null,null,null,null,null,{"$error":"#VALUE!"},{"$error":"#VALUE!"}]